lending/lending_fUSD_20240710
["ID","MTS","AMOUNT","RATE_DAILY","PERIOD"]
[331638362,1720599044486,-620.75,0.00013698,2]
[331638363,1720599044497,-500.0,0.00013698,2]
[331638364,1720599044506,-500.0,0.00013698,2]
[331638365,1720599044518,-855.05,0.00013698,2]
[331638366,1720599044527,-1275.18,0.00013698,2]
[331638367,1720599044537,-500.0,0.00013698,2]
[331638368,1720599044547,-644.41,0.00013698,2]
[331638369,1720599044559,-500.0,0.00013698,2]
[331638370,1720599044568,-1683.31,0.00013698,2]
[331638371,1720599044579,-500.0,0.00013698,2]
[331638372,1720599044588,-895.21,0.00013698,2]
[331638373,1720599044599,-787.1,0.00013698,2]
[331638374,1720599044609,-500.0,0.00013698,2]
[331638375,1720599044619,-627.6,0.00013698,2]
[331638376,1720599044629,-546.71,0.00013698,2]
[331638377,1720599044640,-579.68001661,0.00013698,2]
[331638378,1720599044650,-989.85,0.00013698,2]
[331638379,1720599044660,-2051.53,0.00013698,2]
[331638380,1720599044670,-500.0,0.00013698,2]
[331638381,1720599044680,-500.0,0.00013698,2]
[331638382,1720599044690,-500.0,0.00013698,2]
[331638383,1720599044700,-2095.57,0.00013698,2]
[331638384,1720599044710,-992.31,0.00013698,2]
[331638385,1720599044719,-567.73,0.00013698,2]
[331638386,1720599044729,-500.0,0.00013698,2]
[331638387,1720599044739,-500.0,0.00013698,2]
[331638388,1720599044748,-500.0,0.00013698,2]
[331638389,1720599044757,-522.4,0.00013698,2]
[331638390,1720599044767,-636.54,0.00013698,2]
[331638391,1720599044861,-794.74,0.00013698,2]
[331638392,1720599044871,-500.0,0.00013698,2]
[331638393,1720599044881,-1864.37,0.00013698,2]
[331638394,1720599044890,-500.0,0.00013698,2]
[331638395,1720599044899,-570.04,0.00013698,2]
[331638396,1720599044908,-500.0,0.00013698,2]
[331638397,1720599044918,-633.0,0.00013698,2]
[331638398,1720599044927,-1198.38,0.00013698,2]
[331638399,1720599044936,-500.0,0.00013698,2]
[331638400,1720599044946,-1211.28,0.00013698,2]
[331638401,1720599044955,-809.68,0.00013698,2]
[331638402,1720599044965,-500.0,0.00013698,2]
[331638403,1720599044974,-500.0,0.00013698,2]
[331638404,1720599044984,-500.0,0.00013698,2]
[331638405,1720599044993,-500.0,0.00013698,2]
[331638406,1720599045002,-500.0,0.00013698,2]
[331638407,1720599045012,-789.3,0.00013698,2]
[331638408,1720599045022,-560.53,0.00013698,2]
[331638409,1720599045032,-500.0,0.00013698,2]
[331638410,1720599045041,-500.0,0.00013698,2]
[331638411,1720599045051,-500.0,0.00013698,2]
[331638412,1720599045064,-500.0,0.00013698,2]
[331638413,1720599045074,-500.0,0.00013698,2]
[331638414,1720599045083,-615.3,0.00013698,2]
[331638415,1720599045091,-500.0,0.00013698,2]
[331638416,1720599045100,-2325.79,0.00013698,2]
[331638417,1720599045109,-1713.85,0.00013698,2]
[331638418,1720599045117,-500.0,0.00013698,2]
[331638419,1720599045127,-500.0,0.00013698,2]
[331638420,1720599045136,-903.69,0.00013698,2]
[331638421,1720599045145,-500.0,0.00013698,2]
[331638422,1720599045155,-765.64,0.00013698,2]
[331638423,1720599045164,-500.0,0.00013698,2]
[331638424,1720599045173,-500.0,0.00013698,2]
[331638425,1720599045182,-500.0,0.00013698,2]
[331638426,1720599045192,-500.0,0.00013698,2]
[331638427,1720599045201,-500.0,0.00013698,2]
[331638428,1720599045211,-500.0,0.00013698,2]
[331638429,1720599045221,-500.0,0.00013698,2]
[331638430,1720599045230,-500.0,0.00013698,2]
[331638431,1720599045239,-500.0,0.00013698,2]
[331638432,1720599045248,-500.0,0.00013698,2]
[331638433,1720599045258,-1016.73,0.00013698,2]
[331638434,1720599045267,-2053.88,0.00013698,2]
[331638435,1720599045276,-500.0,0.00013698,2]
[331638436,1720599045285,-1446.59,0.00013698,2]
[331638437,1720599045294,-1224.84,0.00013698,2]
[331638438,1720599045306,-1581.74,0.00013698,2]
[331638439,1720599045315,-1063.5,0.00013698,2]
[331638440,1720599045324,-500.0,0.00013698,2]
[331638441,1720599045333,-397.44422459,0.00013698,2]
[331638442,1720599045342,-500.0,0.00013698,2]
[331638443,1720599045352,-331.37871367,0.00013698,2]
[331638444,1720599045362,-770.63,0.00013698,2]
[331638445,1720599045372,-1892.73,0.00013698,2]
[331638446,1720599045383,-500.0,0.00013698,2]
[331638447,1720599045392,-1325.52,0.00013698,2]
[331638448,1720599045402,-500.0,0.00013698,2]
[331638449,1720599045411,-546.62,0.00013698,2]
[331638450,1720599045421,-648.52542528,0.00013698,2]
[331638451,1720599045431,-1351.13,0.00013698,2]
[331638452,1720599045441,-775.73,0.00013698,2]
[331638453,1720599045450,-1010.28,0.00013698,2]
[331638454,1720599045459,-500.0,0.00013698,2]
[331638455,1720599045469,-500.0,0.00013698,2]
[331638456,1720599045478,-500.0,0.00013698,2]
[331638457,1720599045488,-1358.5,0.00013698,2]
[331638458,1720599045498,-1320.23,0.00013698,2]
[331638459,1720599045510,-1513.11,0.00013698,2]
[331638460,1720599045520,-569.89,0.00013698,2]
[331638461,1720599045529,-889.1,0.00013698,2]
[331638462,1720599045539,-1391.95,0.00013698,2]
[331638463,1720599045548,-500.0,0.00013698,2]
[331638464,1720599045559,-500.0,0.00013698,2]
[331638465,1720599045567,-1262.25,0.00013698,2]
[331638466,1720599045576,-500.0,0.00013698,2]
[331638467,1720599045585,-1622.26,0.00013698,2]
[331638468,1720599045595,-681.07,0.00013698,2]
[331638469,1720599045605,-612.34,0.00013698,2]
[331638470,1720599045615,-500.0,0.00013698,2]
[331638471,1720599045624,-500.0,0.00013698,2]
[331638472,1720599045634,-895.12,0.00013698,2]
[331638473,1720599045644,-2401.6,0.00013698,2]
[331638474,1720599045655,-500.0,0.00013698,2]
[331638475,1720599045664,-500.0,0.00013698,2]
[331638476,1720599045674,-500.0,0.00013698,2]
[331638477,1720599045683,-1905.89,0.00013698,2]
[331638478,1720599045692,-700.36,0.00013698,2]
[331638479,1720599045702,-500.0,0.00013698,2]
[331638480,1720599045712,-651.97,0.00013698,2]
[331638481,1720599045722,-738.82,0.00013698,2]
[331638482,1720599045731,-1052.55,0.00013698,2]
[331638483,1720599045740,-565.31,0.00013698,2]
[331638484,1720599045750,-655.18,0.00013698,2]
[331638485,1720599045759,-1915.89,0.00013698,2]
[331638486,1720599045768,-636.16,0.00013698,2]
[331638487,1720599045778,-1461.74,0.00013698,2]
[331638488,1720599045787,-514.38,0.00013698,2]
[331638489,1720599045797,-756.11,0.00013698,2]
[331638490,1720599045809,-821.58,0.00013698,2]
[331638491,1720599045818,-500.0,0.00013698,2]
[331638492,1720599045827,-579.93,0.00013698,2]
[331638493,1720599045837,-500.0,0.00013698,2]
[331638494,1720599045846,-1067.64,0.00013698,2]
[331638495,1720599045855,-500.0,0.00013698,2]
[331638496,1720599045864,-500.0,0.00013698,2]
[331638497,1720599045873,-1195.75,0.00013698,2]
[331638498,1720599045882,-1392.84,0.00013698,2]
[331638499,1720599045892,-686.96,0.00013698,2]
[331638500,1720599045902,-875.94,0.00013698,2]
[331638501,1720599045911,-1240.99,0.00013698,2]
[331638502,1720599045921,-1399.89,0.00013698,2]
[331638503,1720599045931,-500.0,0.00013698,2]
[331638504,1720599045942,-1421.29,0.00013698,2]
[331638505,1720599045951,-500.0,0.00013698,2]
[331638506,1720599045961,-808.05,0.00013698,2]
[331638507,1720599045971,-566.87,0.00013698,2]
[331638508,1720599045980,-541.08,0.00013698,2]
[331638509,1720599045990,-500.0,0.00013698,2]
[331638510,1720599045999,-500.0,0.00013698,2]
[331638511,1720599046009,-838.58,0.00013698,2]
[331638512,1720599046018,-353.35367887,0.00013698,2]
[331638513,1720599046028,-854.33,0.00013698,2]
[331638514,1720599046039,-2183.86,0.00013698,2]
[331638515,1720599046048,-766.96,0.00013698,2]
[331638516,1720599046061,-500.0,0.00013698,2]
[331638517,1720599046071,-758.22,0.00013698,2]
[331638518,1720599046081,-2347.67,0.00013698,2]
[331638519,1720599046091,-1416.52,0.00013698,2]
[331638520,1720599046100,-500.0,0.00013698,2]
[331638522,1720599046110,-505.57,0.00013698,2]
[331638523,1720599046119,-1601.78,0.00013698,2]
[331638524,1720599046129,-608.64,0.00013698,2]
[331638525,1720599046139,-520.95,0.00013698,2]
[331638526,1720599046149,-1224.06,0.00013698,2]
[331638527,1720599046158,-990.67,0.00013698,2]
[331638529,1720599046168,-851.91,0.00013698,2]
[331638531,1720599046178,-956.7,0.00013698,2]
[331638532,1720599046187,-500.0,0.00013698,2]
[331638534,1720599046196,-647.54,0.00013698,2]
[331638536,1720599046205,-791.23,0.00013698,2]
[331638537,1720599046214,-1739.82,0.00013698,2]
[331638539,1720599046223,-500.0,0.00013698,2]
[331638541,1720599046234,-1133.22,0.00013698,2]
[331638543,1720599046243,-1267.17,0.00013698,2]
[331638544,1720599046253,-500.0,0.00013698,2]
[331638546,1720599046262,-565.74,0.00013698,2]
[331638547,1720599046272,-1391.5,0.00013698,2]
[331638548,1720599046281,-500.0,0.00013698,2]
[331638549,1720599046291,-500.0,0.00013698,2]
[331638550,1720599046300,-500.0,0.00013698,2]
[331638551,1720599046311,-1848.18,0.00013698,2]
[331638552,1720599046320,-500.0,0.00013698,2]
[331638553,1720599046329,-1309.28,0.00013698,2]
[331638554,1720599046338,-1079.43,0.00013698,2]
[331638555,1720599046347,-500.0,0.00013698,2]
[331638556,1720599046356,-560.42,0.00013698,2]
[331638557,1720599046367,-831.76,0.00013698,2]
[331638558,1720599046377,-500.0,0.00013698,2]
[331638559,1720599046387,-500.0,0.00013698,2]
[331638560,1720599046397,-1270.27,0.00013698,2]
[331638561,1720599046406,-500.0,0.00013698,2]
[331638562,1720599046416,-500.0,0.00013698,2]
[331638563,1720599046426,-1193.86,0.00013698,2]
[331638564,1720599046441,-1130.07,0.00013698,2]
[331638565,1720599046460,-500.0,0.00013698,2]
[331638566,1720599046470,-500.0,0.00013698,2]
[331638567,1720599046480,-637.83,0.00013698,2]
[331638568,1720599046493,-500.0,0.00013698,2]
[331638569,1720599046507,-1182.09,0.00013698,2]
[331638570,1720599046519,-500.0,0.00013698,2]
[331638571,1720599046529,-1045.28,0.00013698,2]
[331638572,1720599046538,-565.92,0.00013698,2]
[331638573,1720599046549,-500.0,0.00013698,2]
[331638574,1720599046562,-500.0,0.00013698,2]
[331638575,1720599046571,-525.05,0.00013698,2]
[331638576,1720599046580,-500.0,0.00013698,2]
[331638577,1720599046589,-800.08,0.00013698,2]
[331638578,1720599046598,-2179.63,0.00013698,2]
[331638579,1720599046607,-1454.56,0.00013698,2]
[331638580,1720599046617,-500.0,0.00013698,2]
[331638581,1720599046626,-925.26,0.00013698,2]
[331638582,1720599046635,-500.0,0.00013698,2]
[331638583,1720599046645,-500.0,0.00013698,2]
[331638584,1720599046654,-619.42,0.00013698,2]
[331638585,1720599046664,-1279.46,0.00013698,2]
[331638586,1720599046674,-500.0,0.00013698,2]
[331638587,1720599046684,-500.0,0.00013698,2]
[331638588,1720599046693,-2147.65,0.00013698,2]
[331638589,1720599046703,-1536.32,0.00013698,2]
[331638590,1720599046713,-1364.14,0.00013698,2]
[331638591,1720599046722,-946.17,0.00013698,2]
[331638592,1720599046732,-500.0,0.00013698,2]
[331638593,1720599046742,-1442.46,0.00013698,2]
[331638594,1720599046751,-500.0,0.00013698,2]
[331638595,1720599046761,-1603.67,0.00013698,2]
[331638596,1720599046770,-584.96,0.00013698,2]
[331638597,1720599046779,-549.41,0.00013698,2]
[331638598,1720599046788,-500.0,0.00013698,2]
[331638599,1720599046798,-1132.79,0.00013698,2]
[331638600,1720599046809,-645.66,0.00013698,2]
[331638601,1720599046819,-500.0,0.00013698,2]
[331638602,1720599046829,-500.0,0.00013698,2]
[331638603,1720599046839,-886.67,0.00013698,2]
[331638604,1720599046848,-886.67,0.00013698,2]
[331638605,1720599046857,-500.0,0.00013698,2]
[331638606,1720599046867,-993.34,0.00013698,2]
[331638607,1720599046877,-500.0,0.00013698,2]
[331638608,1720599046887,-1546.4,0.00013698,2]
[331638609,1720599046896,-709.43,0.00013698,2]
[331638610,1720599046905,-500.0,0.00013698,2]
[331638611,1720599046915,-2213.4,0.00013698,2]
[331638612,1720599046924,-798.41,0.00013698,2]
[331638613,1720599046934,-500.0,0.00013698,2]
[331638614,1720599046944,-500.0,0.00013698,2]
[331638615,1720599046954,-772.63,0.00013698,2]
[331638617,1720599046963,-500.0,0.00013698,2]
[331638619,1720599046973,-566.21449218,0.00013698,2]
[331638620,1720599046982,-907.62,0.00013698,2]
[331638621,1720599046993,-500.0,0.00013698,2]
[331638622,1720599047003,-1795.22,0.00013698,2]
[331638623,1720599047012,-1061.37,0.00013698,2]
[331638624,1720599047022,-748.98,0.00013698,2]
[331638625,1720599047031,-1003.48,0.00013698,2]
[331638627,1720599047041,-500.0,0.00013698,2]
[331638629,1720599047050,-500.0,0.00013698,2]
[331638631,1720599047064,-674.33,0.00013698,2]
[331638633,1720599047073,-500.0,0.00013698,2]
[331638634,1720599047082,-500.0,0.00013698,2]
[331638635,1720599047094,-500.0,0.00013698,2]
[331638636,1720599047104,-531.15,0.00013698,2]
[331638637,1720599047113,-500.0,0.00013698,2]
[331638638,1720599047123,-949.97,0.00013698,2]
[331638639,1720599047132,-500.0,0.00013698,2]
[331638640,1720599047141,-500.0,0.00013698,2]
[331638641,1720599047151,-500.0,0.00013698,2]
[331638642,1720599047160,-500.0,0.00013698,2]
[331638643,1720599047170,-1031.46,0.00013698,2]
[331638644,1720599047179,-535.97,0.00013698,2]
[331638645,1720599047189,-1551.25,0.00013698,2]
[331638646,1720599047198,-2009.57,0.00013698,2]
[331638647,1720599047208,-8063.73,0.00013698,2]
[331638648,1720599047217,-1172.06,0.00013698,2]
[331638649,1720599047226,-330.90533865,0.00013698,2]
[331638650,1720599047236,-500.0,0.00013698,2]
[331638651,1720599047245,-500.0,0.00013698,2]
[331638652,1720599047255,-498.48454445,0.00013698,2]
[331638653,1720599047264,-957.9,0.00013698,2]
[331638654,1720599047273,-500.0,0.00013698,2]
[331638655,1720599047283,-500.0,0.00013698,2]
[331638656,1720599047292,-500.0,0.00013698,2]
[331638657,1720599047301,-684.27,0.00013698,2]
[331638658,1720599047312,-500.0,0.00013698,2]
[331638659,1720599047322,-651.64,0.00013698,2]
[331638660,1720599047331,-1261.76,0.00013698,2]
[331638661,1720599047342,-1965.46,0.00013698,2]
[331638662,1720599047351,-500.0,0.00013698,2]
[331638663,1720599047363,-898.83,0.00013698,2]
[331638664,1720599047373,-500.0,0.00013698,2]
[331638665,1720599047382,-776.14,0.00013698,2]
[331638666,1720599047392,-500.0,0.00013698,2]
[331638667,1720599047401,-500.0,0.00013698,2]
[331638668,1720599047411,-922.72,0.00013698,2]
[331638669,1720599047431,-500.0,0.00013698,2]
[331638670,1720599047441,-539.56,0.00013698,2]
[331638671,1720599047451,-500.0,0.00013698,2]
[331638672,1720599047460,-1390.04,0.00013698,2]
[331638673,1720599047470,-389.56360892,0.00013698,2]
[331638674,1720599047480,-1261.08,0.00013698,2]
[331638675,1720599047490,-2063.91,0.00013698,2]
[331638676,1720599047502,-500.0,0.00013698,2]
[331638677,1720599047512,-500.0,0.00013698,2]
[331638678,1720599047521,-1168.83,0.00013698,2]
[331638679,1720599047532,-1691.19,0.00013698,2]
[331638680,1720599047542,-595.62,0.00013698,2]
[331638681,1720599047552,-500.0,0.00013698,2]
[331638682,1720599047566,-500.0,0.00013698,2]
[331638683,1720599047575,-500.0,0.00013698,2]
[331638684,1720599047585,-500.0,0.00013698,2]
[331638685,1720599047595,-500.0,0.00013698,2]
[331638686,1720599047604,-1211.99,0.00013698,2]
[331638687,1720599047614,-2001.25,0.00013698,2]
[331638688,1720599047623,-704.07,0.00013698,2]
[331638689,1720599047633,-7594.21,0.00013698,2]
[331638690,1720599047642,-500.0,0.00013698,2]
[331638691,1720599047651,-500.0,0.00013698,2]
[331638692,1720599047662,-500.0,0.00013698,2]
[331638693,1720599047671,-739.38,0.00013698,2]
[331638694,1720599047681,-520.82,0.00013698,2]
[331638695,1720599047690,-500.0,0.00013698,2]
[331638696,1720599047699,-1451.03,0.00013698,2]
[331638697,1720599047709,-500.0,0.00013698,2]
[331638698,1720599047718,-1390.38,0.00013698,2]
[331638699,1720599047727,-500.0,0.00013698,2]
[331638700,1720599047737,-500.0,0.00013698,2]
[331638701,1720599047748,-571.76,0.00013698,2]
[331638702,1720599047758,-500.0,0.00013698,2]
[331638703,1720599047767,-527.86,0.00013698,2]
[331638704,1720599047777,-500.0,0.00013698,2]
[331638705,1720599047787,-1672.16,0.00013698,2]
[331638706,1720599047796,-2979.14,0.00013698,2]
[331638707,1720599047807,-775.37,0.00013698,2]
[331638708,1720599047817,-500.0,0.00013698,2]
[331638709,1720599047826,-641.26,0.00013698,2]
[331638710,1720599047836,-500.0,0.00013698,2]
[331638711,1720599047845,-500.0,0.00013698,2]
[331638712,1720599047855,-500.0,0.00013698,2]
[331638713,1720599047865,-542.11,0.00013698,2]
[331638714,1720599047875,-500.0,0.00013698,2]
[331638715,1720599047890,-460.2875,0.00013698,2]
[331638716,1720599047900,-500.0,0.00013698,2]
[331638717,1720599047911,-1256.31,0.00013698,2]
[331638718,1720599047922,-665.69,0.00013698,2]
[331638719,1720599047931,-438.66716825,0.00013698,2]
[331638720,1720599047940,-551.13,0.00013698,2]
[331638721,1720599047950,-500.0,0.00013698,2]
[331638722,1720599047960,-878.48,0.00013698,2]
[331638723,1720599047969,-500.0,0.00013698,2]
[331638724,1720599047979,-500.0,0.00013698,2]
[331638725,1720599047988,-682.43,0.00013698,2]
[331638726,1720599047997,-500.0,0.00013698,2]
[331638727,1720599048007,-3981.22,0.00013698,2]
[331638728,1720599048016,-1336.43,0.00013698,2]
[331638729,1720599048025,-500.0,0.00013698,2]
[331638730,1720599048035,-604.92,0.00013698,2]
[331638731,1720599048044,-662.54,0.00013698,2]
[331638732,1720599048055,-500.0,0.00013698,2]
[331638733,1720599048065,-1827.92,0.00013698,2]
[331638734,1720599048074,-953.72,0.00013698,2]
[331638735,1720599048084,-2531.12,0.00013698,2]
[331638736,1720599048093,-500.0,0.00013698,2]
[331638737,1720599048103,-831.35,0.00013698,2]
[331638738,1720599048112,-524.08,0.00013698,2]
[331638739,1720599048122,-500.0,0.00013698,2]
[331638740,1720599048132,-1097.86,0.00013698,2]
[331638741,1720599048141,-721.73,0.00013698,2]
[331638742,1720599048150,-1613.86,0.00013698,2]
[331638743,1720599048160,-500.0,0.00013698,2]
[331638744,1720599048169,-1530.39,0.00013698,2]
[331638745,1720599048179,-2252.59,0.00013698,2]
[331638746,1720599048189,-1003.31,0.00013698,2]
[331638747,1720599048199,-500.0,0.00013698,2]
[331638748,1720599048208,-842.22,0.00013698,2]
[331638749,1720599048217,-509.24,0.00013698,2]
[331638750,1720599048227,-552.97,0.00013698,2]
[331638751,1720599048236,-1134.84,0.00013698,2]
[331638752,1720599048246,-500.0,0.00013698,2]
[331638753,1720599048255,-707.08,0.00013698,2]
[331638754,1720599048265,-1100.8,0.00013698,2]
[331638755,1720599048276,-1455.23,0.00013698,2]
[331638756,1720599048285,-1224.68,0.00013698,2]
[331638757,1720599048295,-188.9289113,0.00013698,2]
[331638758,1720599048305,-500.0,0.00013698,2]
[331638759,1720599048315,-500.0,0.00013698,2]
[331638760,1720599048324,-500.0,0.00013698,2]
[331638761,1720599048337,-500.0,0.00013698,2]
[331638762,1720599048347,-970.85,0.00013698,2]
[331638763,1720599048356,-864.35,0.00013698,2]
[331638764,1720599048367,-500.0,0.00013698,2]
[331638765,1720599048377,-500.0,0.00013698,2]
[331638766,1720599048387,-727.67,0.00013698,2]
[331638767,1720599048397,-500.0,0.00013698,2]
[331638768,1720599048407,-500.0,0.00013698,2]
[331638769,1720599048417,-3454.66,0.00013698,2]
[331638770,1720599048427,-1558.68,0.00013698,2]
[331638771,1720599048437,-500.0,0.00013698,2]
[331638772,1720599048446,-1081.61,0.00013698,2]
[331638773,1720599048455,-500.0,0.00013698,2]
[331638774,1720599048465,-824.12,0.00013698,2]
[331638775,1720599048475,-249.51959031,0.00013698,2]
[331638776,1720599048485,-500.0,0.00013698,2]
[331638777,1720599048496,-1320.77,0.00013698,2]
[331638778,1720599048506,-500.0,0.00013698,2]
[331638779,1720599048516,-1608.57,0.00013698,2]
[331638780,1720599048526,-500.0,0.00013698,2]
[331638781,1720599048536,-541.93,0.00013698,2]
[331638782,1720599048545,-834.91,0.00013698,2]
[331638783,1720599048556,-787.39,0.00013698,2]
[331638784,1720599048566,-575.26,0.00013698,2]
[331638785,1720599048576,-791.15,0.00013698,2]
[331638786,1720599048586,-500.0,0.00013698,2]
[331638787,1720599048596,-500.0,0.00013698,2]
[331638788,1720599048606,-500.0,0.00013698,2]
[331638789,1720599048620,-500.0,0.00013698,2]
[331638790,1720599048630,-662.24,0.00013698,2]
[331638791,1720599048639,-2495.06,0.00013698,2]
[331638792,1720599048649,-500.0,0.00013698,2]
[331638793,1720599048659,-282.4398578,0.00013698,2]
[331638794,1720599048669,-1021.29,0.00013698,2]
[331638795,1720599048680,-500.0,0.00013698,2]
[331638796,1720599048689,-500.0,0.00013698,2]
[331638797,1720599048699,-1369.65,0.00013698,2]
[331638798,1720599048709,-624.67,0.00013698,2]
[331638799,1720599048719,-775.81,0.00013698,2]
[331638800,1720599048728,-855.1,0.00013698,2]
[331638801,1720599048738,-500.0,0.00013698,2]
[331638802,1720599048747,-200.0,0.00013699,2]
[331638803,1720599048757,-200.0,0.00013699,2]
[331638804,1720599048767,-250.0,0.00013699,2]
[331638805,1720599048777,-10000.0,0.00013699,2]
[331638806,1720599048786,-2751.0,0.00013699,2]
[331638807,1720599048796,-500.0,0.00013699,2]
[331638808,1720599048806,-2474.87,0.00013699,2]
[331638809,1720599048816,-200.0,0.00013699,2]
[331638810,1720599048826,-225.0,0.000137,2]
[331638811,1720599048836,-356.0,0.000137,2]
[331638812,1720599048847,-1000.0,0.000137,2]
[331638813,1720599048856,-160.4114324,0.00013726,2]
[331638814,1720599048866,-150.0,0.00013726,2]
[331638815,1720599048876,-150.0,0.00013726,2]
[331638816,1720599048886,-150.0,0.00013726,2]
[331638817,1720599048898,-12780.12103869,0.00013736,2]
[331638818,1720599048908,-160.4114324,0.00013739,2]
[331638819,1720599048918,-150.0,0.00013748,2]
[331638820,1720599048928,-160.4114324,0.00013751,2]
[331638821,1720599048938,-500.0,0.00013753,2]
[331638822,1720599048948,-768.06,0.00013753,2]
[331638823,1720599048959,-798.28,0.00013753,2]
[331638824,1720599048968,-869.12,0.00013753,2]
[331638825,1720599048979,-922.42,0.00013753,2]
[331638826,1720599048989,-500.0,0.00013753,2]
[331638827,1720599048998,-500.0,0.00013753,2]
[331638828,1720599049008,-500.0,0.00013753,2]
[331638829,1720599049018,-562.96,0.00013753,2]
[331638830,1720599049028,-1185.66,0.00013753,2]
[331638831,1720599049278,-500.0,0.00013753,2]
[331638832,1720599049300,-965.26,0.00013753,2]
[331638833,1720599049311,-500.0,0.00013753,2]
[331638834,1720599049321,-500.0,0.00013753,2]
[331638835,1720599049331,-858.77,0.00013753,2]
[331638836,1720599049340,-829.04,0.00013753,2]
[331638837,1720599049350,-500.0,0.00013753,2]
[331638838,1720599049367,-1107.31,0.00013753,2]
[331638839,1720599049380,-540.25,0.00013753,2]
[331638840,1720599049390,-500.0,0.00013753,2]
[331638841,1720599049400,-500.0,0.00013753,2]
[331638842,1720599049410,-500.0,0.00013753,2]
[331638843,1720599049420,-966.7,0.00013753,2]
[331638844,1720599049430,-500.0,0.00013753,2]
[331638845,1720599049440,-685.53,0.00013753,2]
[331638846,1720599049450,-949.59,0.00013753,2]
[331638847,1720599049460,-627.98,0.00013753,2]
[331638848,1720599049469,-921.07,0.00013753,2]
[331638849,1720599049479,-501.9,0.00013753,2]
[331638850,1720599049489,-500.0,0.00013753,2]
[331638851,1720599049501,-500.0,0.00013753,2]
[331638852,1720599049511,-500.0,0.00013753,2]
[331638853,1720599049521,-935.29,0.00013753,2]
[331638854,1720599049531,-500.0,0.00013753,2]
[331638855,1720599049541,-500.0,0.00013753,2]
[331638856,1720599049551,-500.0,0.00013753,2]
[331638857,1720599049563,-500.0,0.00013753,2]
[331638858,1720599049573,-456.74966536,0.00013753,2]
[331638859,1720599049584,-500.0,0.00013753,2]
[331638860,1720599049595,-521.3,0.00013753,2]
[331638861,1720599049605,-691.09,0.00013753,2]
[331638862,1720599049616,-500.0,0.00013753,2]
[331638863,1720599049625,-500.0,0.00013753,2]
[331638864,1720599049635,-1037.99,0.00013753,2]
[331638865,1720599049646,-500.0,0.00013753,2]
[331638866,1720599049656,-500.0,0.00013753,2]
[331638867,1720599049666,-500.0,0.00013753,2]
[331638868,1720599049676,-818.8,0.00013753,2]
[331638869,1720599049686,-500.0,0.00013753,2]
[331638870,1720599049696,-500.0,0.00013753,2]
[331638871,1720599049706,-500.0,0.00013753,2]
[331638872,1720599049715,-984.8,0.00013753,2]
[331638873,1720599049725,-500.0,0.00013753,2]
[331638874,1720599049735,-500.0,0.00013753,2]
[331638875,1720599049745,-510.14,0.00013753,2]
[331638876,1720599049755,-500.0,0.00013753,2]